bitfinex/quotes_SOLUSD_20240621
["timestamp","ask_amount","ask_price","bid_price","bid_amount"]
[1718942599794,6.3903,132.48,132.36,6.0439]
[1718942600109,6.3903,132.48,132.38,33.57]
[1718942600419,6.3903,132.48,132.39,20.51]
[1718942601211,261.4903,132.52,132.4,6.0419]
[1718942601421,261.4903,132.52,132.41,20.34]
[1718942601594,261.4903,132.52,132.41,26.3817]
[1718942601913,261.4903,132.52,132.41,20.0]
[1718942602080,261.4903,132.52,132.4,0.17]
[1718942602280,261.4903,132.52,132.4,0.34]
[1718942602584,261.4903,132.52,132.41,0.17]
[1718942603080,0.17,132.51,132.41,0.17]
[1718942603279,0.51,132.51,132.41,0.17]
[1718942603620,261.4903,132.52,132.41,0.17]
[1718942603783,261.6603,132.52,132.41,0.17]
[1718942603984,0.34,132.51,132.41,0.17]
[1718942604418,261.4903,132.52,132.41,6.2118]
[1718942604594,261.4903,132.52,132.42,20.34]
[1718942604781,261.4903,132.52,132.43,0.17]
[1718942606507,15.383,132.54,132.43,15.314]
[1718942606803,15.383,132.54,132.44,20.34]
[1718942607013,15.383,132.54,132.45,0.17]
[1718942608011,0.17,132.53,132.45,0.17]
[1718942608711,15.383,132.54,132.45,0.17]
[1718942609514,1.1561767,132.55,132.45,0.17]
[1718942609725,0.8161767,132.55,132.45,0.17]
[1718942610016,0.8161767,132.55,132.46,39.5994]
[1718942610190,0.8161767,132.55,132.47,20.34]
[1718942610608,0.8161767,132.55,132.47,20.0]
[1718942610996,0.8161767,132.55,132.44,20.0]
[1718942611394,20.8161767,132.55,132.38,41.7339]
[1718942611592,45.0,132.54,132.38,41.7339]
[1718942611809,20.34,132.53,132.38,64.2257]
[1718942612016,0.17,132.52,132.38,64.2257]
[1718942612194,0.17,132.52,132.39,6.0427]
[1718942612403,0.17,132.52,132.4,26.0421]
[1718942612620,0.17,132.52,132.4,20.0]
[1718942612995,0.17,132.52,132.39,20.0]
[1718942613197,45.17,132.52,132.4,0.51]
[1718942613498,0.34,132.51,132.4,0.51]
[1718942613705,0.17,132.5,132.4,0.51]
[1718942615011,6.3472,132.49,132.39,20.0]
[1718942615198,0.51,132.48,132.36,20.0]
[1718942615410,95.51,132.48,132.36,20.0]
[1718942616101,95.51,132.48,132.34,20.0]
[1718942616294,6.3472,132.47,132.33,33.56]
[1718942616507,15.3673,132.45,132.31,22.4408]
[1718942616712,0.34,132.44,132.31,22.4408]
[1718942616926,65.51,132.44,132.31,22.4408]
[1718942617597,65.51,132.44,132.32,20.0]
[1718942618911,30.0,132.43,132.32,20.0]
[1718942619117,0.51,132.42,132.32,20.0]
[1718942619702,0.17,132.42,132.32,20.0]
[1718942619909,0.17,132.42,132.33,0.17]
[1718942620101,0.17,132.42,132.32,20.0]
[1718942620102,0.51,132.42,132.32,20.0]
[1718942620612,30.0,132.43,132.33,0.34]
[1718942621021,270.4673,132.45,132.33,0.34]
[1718942621317,270.4673,132.45,132.33,0.17]
[1718942621616,270.4673,132.45,132.33,0.34]
[1718942621819,0.17,132.44,132.34,0.17]
[1718942622120,0.17,132.44,132.34,0.34]
[1718942622315,0.17,132.44,132.35,0.17]
[1718942622706,0.34,132.44,132.35,0.17]
[1718942622903,0.34,132.44,132.35,20.17]
[1718942623107,0.34,132.44,132.35,0.17]
[1718942623612,270.4673,132.45,132.35,0.34]
[1718942623805,270.4673,132.45,132.36,0.17]
[1718942624507,270.4673,132.45,132.35,0.17]
[1718942624916,0.17,132.44,132.35,0.17]
[1718942625218,0.34,132.44,132.35,0.17]
[1718942625413,270.4673,132.45,132.35,0.17]
[1718942625414,270.4673,132.45,132.35,0.51]
[1718942626201,0.17,132.44,132.35,0.51]
[1718942626420,270.4673,132.45,132.35,0.51]
[1718942626924,6.3472,132.47,132.36,29.1859]
[1718942627100,6.3472,132.47,132.39,6.0423]
[1718942627301,6.3472,132.47,132.4,0.34]
[1718942627638,6.3472,132.47,132.4,20.34]
[1718942627841,15.3056,132.5,132.41,0.17]
[1718942628043,15.3056,132.5,132.4,20.34]
[1718942628399,15.3056,132.5,132.41,20.0]
[1718942628908,15.3056,132.5,132.36,6.4459]
[1718942629103,15.3056,132.5,132.34,16.1875]
[1718942629104,45.0,132.49,132.37,20.0]
[1718942629304,0.17,132.48,132.37,20.0]
[1718942629539,0.51,132.48,132.37,20.0]
[1718942629740,0.51,132.48,132.35,20.17]
[1718942630117,0.51,132.48,132.36,0.17]
[1718942630448,0.51,132.48,132.36,0.34]
[1718942630942,0.51,132.48,132.37,0.17]
[1718942631263,0.51,132.48,132.36,0.34]
[1718942631423,6.1044,132.47,132.36,0.17]
[1718942631743,0.51,132.46,132.36,0.51]
[1718942631919,6.1044,132.47,132.36,0.51]
[1718942632616,6.1044,132.47,132.39,6.0425]
[1718942632816,6.1044,132.47,132.4,20.51]
[1718942633445,6.1044,132.47,132.4,0.51]
[1718942633643,21.4239,132.5,132.4,6.5521]
[1718942633946,21.4239,132.5,132.41,20.0]
[1718942634242,21.4239,132.5,132.42,0.51]
[1718942634443,6.1183,132.5,132.42,0.51]
[1718942635119,6.1183,132.5,132.42,0.17]
[1718942635431,6.1183,132.5,132.41,0.51]
[1718942636241,6.1183,132.5,132.4,20.0]
[1718942636436,0.51,132.49,132.4,20.0]
[1718942636634,6.1183,132.5,132.38,20.0]
[1718942636838,6.1183,132.5,132.39,6.0425]
[1718942637232,5.09316628,132.5,132.4,20.0]
[1718942637648,5.09316628,132.5,132.41,0.34]
[1718942638728,5.09316628,132.5,132.4,0.34]
[1718942638930,5.09316628,132.5,132.41,0.17]
[1718942642124,5.09316628,132.5,132.41,20.17]
[1718942642428,5.09316628,132.5,132.42,0.34]
[1718942643038,5.09316628,132.5,132.42,0.17]
[1718942643339,0.17,132.49,132.42,20.0]
[1718942643644,0.17,132.49,132.38,20.0]
[1718942643844,0.34,132.49,132.39,0.17]
[1718942644249,15.383,132.48,132.38,20.0]
[1718942644546,0.34,132.47,132.38,20.0]
[1718942644849,6.4239,132.45,132.38,20.0]
[1718942645048,6.4239,132.45,132.36,20.0]
[1718942646757,6.4239,132.45,132.37,0.17]
[1718942648325,6.4239,132.45,132.36,0.51]
[1718942649361,0.17,132.44,132.35,20.0]
[1718942649550,15.5969,132.44,132.35,20.0]
[1718942649750,15.5969,132.44,132.32,1.30965353]
[1718942650054,6.36,132.43,132.32,1.30965353]
[1718942650241,6.36,132.43,132.3,54.6279]
[1718942650242,0.34,132.42,132.3,54.6279]
[1718942650444,0.34,132.42,132.31,7.35700661]
[1718942650749,0.17,132.42,132.31,1.31060661]
[1718942650954,6.36,132.43,132.33,6.0454]
[1718942651248,6.36,132.43,132.34,20.51]
[1718942651455,6.36,132.43,132.35,20.17]
[1718942651655,6.36,132.43,132.35,0.17]
[1718942652044,15.383,132.48,132.38,6.0429]
[1718942652245,15.383,132.48,132.37,33.56]
[1718942652246,15.383,132.48,132.39,20.51]
[1718942652960,15.383,132.48,132.4,20.0]
[1718942653157,15.383,132.48,132.39,0.17]
[1718942653341,15.383,132.48,132.38,20.0]
[1718942653342,0.17,132.47,132.38,20.0]
[1718942653540,6.4645,132.46,132.32,20.0]
[1718942653738,6.4645,132.46,132.33,0.34]
[1718942653936,0.17,132.45,132.33,0.17]
[1718942654142,15.3448,132.44,132.32,20.0]
[1718942654347,6.301,132.42,132.32,20.0]
[1718942654860,6.301,132.42,132.32,6.0455]
[1718942655159,6.301,132.42,132.32,6.0459]
[1718942655548,6.301,132.42,132.31,16.65540661]
[1718942655549,6.301,132.42,132.33,6.0454]
[1718942655741,6.301,132.42,132.34,0.51]
[1718942656148,6.301,132.42,132.35,6.0444]
[1718942656459,6.301,132.42,132.36,26.5538]
[1718942656658,6.301,132.42,132.37,0.17]
[1718942657844,6.2341,132.46,132.37,6.2133]
[1718942658038,6.2341,132.46,132.38,20.34]
[1718942658252,6.2341,132.46,132.39,0.17]
[1718942658452,6.2341,132.46,132.4,6.0422]
[1718942658656,200.0,132.58,132.41,26.5517]
[1718942658657,21.8465,132.54,132.41,26.5517]
[1718942659251,21.8465,132.54,132.41,26.5518]
[1718942660558,21.8465,132.54,132.42,101.56]
[1718942660774,21.8465,132.54,132.43,26.5505]
[1718942661266,21.8465,132.54,132.43,49.2907]
[1718942661562,21.8465,132.54,132.43,20.51]
[1718942662664,21.8465,132.54,132.43,88.67]
[1718942662841,21.8465,132.54,132.48,6.0383]
[1718942663043,21.8465,132.54,132.49,0.51]
[1718942663256,21.8465,132.54,132.49,0.17]
[1718942664874,6.4635,132.54,132.49,0.17]
[1718942665043,0.8161767,132.55,132.49,26.2078]
[1718942665244,0.8161767,132.55,132.51,6.0369]
[1718942665436,0.8161767,132.55,132.52,20.51]
[1718942665655,0.8161767,132.55,132.53,0.17]
[1718942665854,0.8161767,132.55,132.53,20.17]
[1718942666055,0.8161767,132.55,132.53,20.0]
[1718942666439,0.8161767,132.55,132.52,0.17]
[1718942666951,0.8161767,132.55,132.51,0.51]
[1718942667164,0.8161767,132.55,132.53,6.0363]
[1718942667359,0.8161767,132.55,132.54,20.51]
[1718942667664,0.8161767,132.55,132.54,20.17]
[1718942667884,0.8161767,132.55,132.54,0.34]
[1718942668168,0.8161767,132.55,132.52,20.0]
[1718942668339,0.8161767,132.55,132.5,20.0]
[1718942669571,0.8161767,132.55,132.51,0.51]
[1718942671458,0.8161767,132.55,132.51,6.5469]
[1718942671655,0.8161767,132.55,132.52,20.0]
[1718942671854,0.8161767,132.55,132.53,0.51]
[1718942672142,0.8161767,132.55,132.53,0.17]
[1718942672341,0.8161767,132.55,132.53,0.34]
[1718942672557,0.8161767,132.55,132.52,0.34]
[1718942672965,0.8161767,132.55,132.52,20.34]
[1718942673256,0.8161767,132.55,132.53,0.17]
[1718942673568,0.8161767,132.55,132.52,0.17]
[1718942673736,0.8161767,132.55,132.5,20.0]
[1718942673737,0.8161767,132.55,132.51,0.34]
[1718942675363,0.8161767,132.55,132.53,6.0361]
[1718942675549,0.8161767,132.55,132.54,0.51]
[1718942675749,0.8161767,132.55,132.54,20.51]
[1718942676649,0.8161767,132.55,132.54,26.5459]
[1718942677455,0.8161767,132.55,132.54,49.2859]
[1718942678054,6.1283,132.61,132.55,6.0354]
[1718942678282,6.1283,132.61,132.56,20.51]
[1718942678462,6.1283,132.61,132.57,0.17]
[1718942678651,6.1283,132.61,132.56,0.17]
[1718942678851,0.8161767,132.69,132.55,0.17]
[1718942678852,15.383,132.65,132.55,0.17]
[1718942679050,21.6947,132.65,132.55,0.17]
[1718942679268,21.6947,132.65,132.56,6.0346]
[1718942679463,21.6947,132.65,132.57,20.51]
[1718942679979,21.6947,132.65,132.57,0.51]
[1718942680162,21.6947,132.65,132.58,20.0]
[1718942680345,21.6947,132.65,132.59,0.17]
[1718942680549,21.6947,132.65,132.57,0.51]
[1718942681178,21.6947,132.65,132.57,1.69867755]
[1718942681376,21.6947,132.65,132.57,7.73317755]
[1718942681549,21.6947,132.65,132.58,20.0]
[1718942681754,6.3117,132.65,132.59,0.51]
[1718942682051,6.6441,132.68,132.59,23.25]
[1718942682256,6.6441,132.68,132.61,33.56]
[1718942682465,0.8161767,132.69,132.62,20.51]
[1718942682885,0.8161767,132.69,132.62,0.51]
[1718942683654,0.8161767,132.69,132.62,0.34]
[1718942683863,0.8161767,132.69,132.62,0.17]
[1718942684871,0.8161767,132.69,132.61,20.34]
[1718942685254,0.8161767,132.69,132.61,20.17]
[1718942685463,0.8161767,132.69,132.62,20.0]
[1718942685655,0.8161767,132.69,132.61,0.17]
[1718942685856,0.8161767,132.69,132.6,0.17]
[1718942686086,6.5963,132.68,132.54,28.2956]
[1718942686391,15.3094,132.67,132.54,67.6801]
[1718942686560,15.3094,132.67,132.56,6.0346]
[1718942686882,15.3094,132.67,132.55,39.5953]
[1718942687361,15.3094,132.67,132.56,20.0]
[1718942687563,15.3094,132.67,132.57,0.51]
[1718942687868,15.3094,132.67,132.59,39.5932]
[1718942688070,15.3094,132.67,132.6,20.51]
[1718942688456,6.5963,132.68,132.6,20.51]
[1718942688659,6.5963,132.68,132.6,26.5427]
[1718942689159,6.5963,132.68,132.61,6.0326]
[1718942689365,6.5963,132.68,132.62,20.51]
[1718942689577,6.5963,132.68,132.63,0.17]
[1718942689755,6.5963,132.68,132.63,0.34]
[1718942689955,6.5963,132.68,132.63,20.34]
[1718942690153,6.5963,132.68,132.63,0.34]
[1718942692366,6.5963,132.68,132.63,0.17]
[1718942692576,6.5963,132.68,132.62,0.34]
[1718942692857,6.5963,132.68,132.62,0.51]
[1718942693057,6.5963,132.68,132.6,35.1224]
[1718942693269,6.5963,132.68,132.6,20.0]
[1718942694758,6.5963,132.68,132.61,0.17]
[1718942694959,6.5963,132.68,132.61,0.34]
[1718942695171,6.5963,132.68,132.62,0.17]
[1718942695572,6.5963,132.68,132.61,0.34]
[1718942695777,6.5963,132.68,132.6,20.0]
[1718942696075,6.5963,132.68,132.58,15.1224]
[1718942696076,15.383,132.66,132.54,55.8201]
[1718942696277,0.17,132.65,132.54,55.8201]
[1718942696493,0.17,132.65,132.55,15.1224]
[1718942696789,15.383,132.66,132.55,15.1224]
[1718942696958,15.383,132.66,132.55,21.1577]
[1718942697270,0.17,132.65,132.55,15.1224]
[1718942697469,0.17,132.65,132.56,20.0]
[1718942698462,6.6364,132.64,132.56,20.0]
[1718942698965,6.6364,132.64,132.57,0.17]
[1718942699891,6.6364,132.64,132.57,26.2044]
[1718942700093,6.6364,132.64,132.58,0.34]
[1718942700387,6.6364,132.64,132.59,0.17]
[1718942700771,6.6364,132.64,132.59,0.34]
[1718942701171,6.6364,132.64,132.6,0.17]
[1718942701571,6.6364,132.64,132.6,0.34]
[1718942701781,6.6364,132.64,132.61,0.17]
[1718942701977,6.6364,132.64,132.61,0.34]
[1718942702379,6.6364,132.64,132.61,20.34]
[1718942702587,6.6364,132.64,132.59,20.0]
[1718942703086,6.6364,132.64,132.54,15.383]
[1718942703272,6.6364,132.64,132.55,20.0]
[1718942703585,0.34,132.65,132.51,48.943]
[1718942703586,21.476,132.62,132.51,48.943]
[1718942703793,21.476,132.62,132.49,6.0379]
[1718942703974,0.51,132.61,132.47,17.86217037]
[1718942704184,0.51,132.61,132.48,6.0382]
[1718942704380,0.51,132.61,132.5,6.0377]
[1718942704569,21.476,132.62,132.51,6.0372]
[1718942705191,21.476,132.62,132.51,68.16]
[1718942705391,6.093,132.62,132.54,117.0444]
[1718942705691,6.266,132.65,132.55,0.51]
[1718942705896,6.266,132.65,132.57,6.0343]
[1718942706071,6.266,132.65,132.55,43.25]
[1718942706274,6.266,132.65,132.58,0.17]
[1718942706584,6.266,132.65,132.58,39.7639]
[1718942706785,6.266,132.65,132.59,20.34]
[1718942707297,6.266,132.65,132.6,0.17]
[1718942708804,22.4684767,132.69,132.6,0.17]
[1718942709297,22.4684767,132.69,132.61,6.0325]
[1718942709481,22.4684767,132.69,132.62,20.51]
[1718942710091,22.4684767,132.69,132.62,0.51]
[1718942710697,0.8161767,132.69,132.65,6.0304]
[1718942710907,0.8161767,132.69,132.66,20.51]
[1718942711087,0.8161767,132.69,132.66,26.5404]
[1718942712001,0.8161767,132.69,132.68,6.0295]
[1718942712200,0.8161767,132.69,132.68,6.5395]
[1718942712403,0.8592466,132.75,132.71,6.0278]
[1718942712605,0.8592466,132.75,132.72,20.51]
[1718942714088,0.8592466,132.75,132.72,20.34]
[1718942714709,0.8592466,132.75,132.73,6.1969]
[1718942714912,0.8592466,132.75,132.74,20.34]
[1718942715112,0.8592466,132.75,132.74,20.51]
[1718942715287,0.8592466,132.75,132.74,26.5368]
[1718942715611,0.8592466,132.75,132.74,71.9568]
[1718942715907,1.2833,132.78,132.75,6.0263]
[1718942716109,1.2833,132.78,132.76,43.25]
[1718942716410,1.2833,132.78,132.76,26.5356]
[1718942716590,1.2833,132.78,132.76,20.51]
[1718942717196,1.2833,132.78,132.76,71.9554]
[1718942717393,1.2833,132.78,132.76,26.5354]
[1718942717588,1.2833,132.78,132.76,20.51]
[1718942718697,1.4368569,132.82,132.76,22.7088685]
[1718942718905,1.4368569,132.82,132.78,6.025]
[1718942719091,1.4368569,132.82,132.78,26.535]
[1718942719298,1.4368569,132.82,132.78,65.93]
[1718942719714,1.4368569,132.82,132.78,71.955]
[1718942720512,1.4368569,132.82,132.79,60.0944]
[1718942720688,1.4368569,132.82,132.8,6.0239]
[1718942720888,1.4368569,132.82,132.81,20.51]
[1718942721594,1.4368569,132.82,132.81,0.51]
[1718942722516,1.4368569,132.82,132.81,45.93]
[1718942722818,6.0778,132.92,132.81,115.7987]
[1718942723008,6.0778,132.92,132.82,20.0]
[1718942723191,6.0778,132.92,132.83,45.93]
[1718942723391,6.0778,132.92,132.84,20.0]
[1718942723688,6.0778,132.92,132.85,0.51]
[1718942724788,6.0778,132.92,132.84,20.0]
[1718942725022,15.383,132.94,132.76,51.4966685]
[1718942725023,6.3891,132.9,132.76,51.4966685]
[1718942725188,0.17,132.89,132.77,20.0]
[1718942725596,6.3891,132.9,132.76,17.9366685]
[1718942725794,6.3891,132.9,132.77,51.4453]
[1718942726001,6.3891,132.9,132.78,6.0248]
[1718942726237,6.3891,132.9,132.79,78.98]
[1718942726390,6.3891,132.9,132.8,6.0236]
[1718942726596,6.3891,132.9,132.81,0.51]
[1718942726921,6.3891,132.9,132.82,6.0229]
[1718942727139,6.3891,132.9,132.83,20.51]
[1718942728229,6.3891,132.9,132.83,26.5326]
[1718942728434,255.9592466,133.02,132.83,26.5326]
[1718942728435,6.4514,132.94,132.84,6.022]
[1718942728607,6.4514,132.94,132.85,26.5318]
[1718942728807,6.4514,132.94,132.85,20.51]
[1718942729010,6.4514,132.94,132.85,26.5316]
[1718942729213,6.4514,132.94,132.85,20.51]
[1718942729453,6.4514,132.94,132.86,6.0212]
[1718942729604,6.4514,132.94,132.85,88.67]
[1718942729605,6.4514,132.94,132.87,20.17]
[1718942729808,6.4514,132.94,132.88,0.34]
[1718942730035,6.4514,132.94,132.88,0.17]
[1718942731210,0.8161767,132.95,132.88,0.17]
[1718942731409,0.8161767,132.95,132.9,6.0194]
[1718942731634,0.8161767,132.95,132.91,20.34]
[1718942731941,0.8161767,132.95,132.92,0.17]
[1718942732714,0.8161767,132.95,132.91,0.17]
[1718942732936,0.8161767,132.95,132.87,20.0]
[1718942733108,0.8161767,132.95,132.88,0.34]
[1718942733309,0.8161767,132.95,132.88,6.3601]
[1718942733511,0.8161767,132.95,132.89,20.0]
[1718942733744,0.8161767,132.95,132.9,0.34]
[1718942734718,0.8161767,132.95,132.91,0.17]
[1718942737633,0.8161767,132.95,132.91,74.349]
[1718942737807,0.8161767,132.95,132.92,20.34]
[1718942738013,0.8161767,132.95,132.93,0.17]
[1718942739136,0.8161767,132.95,132.94,39.5777]
[1718942739312,0.8161767,132.95,132.94,54.07]
[1718942739637,0.8592466,133.02,132.97,68.16]
[1718942739823,0.8592466,133.02,132.98,20.34]
[1718942740020,0.8592466,133.02,132.99,0.17]
[1718942741028,0.8592466,133.02,133.0,83.796]
[1718942741335,0.1914514,133.05,133.01,90.86473559]
[1718942741746,0.1914514,133.05,133.01,96.87913559]
[1718942741933,0.1914514,133.05,133.02,6.014]
[1718942742133,0.1914514,133.05,133.03,49.2636]
[1718942742330,0.1914514,133.05,133.03,71.9435]
[1718942742552,0.1914514,133.05,133.04,0.65606546]
[1718942742733,0.1914514,133.05,133.04,1.16631209]
[1718942742925,0.1914514,133.05,133.04,6.5232]
[1718942743254,0.1914514,133.05,133.04,94.6832]
[1718942743620,0.1914514,133.05,133.04,20.51]
[1718942744125,0.1914514,133.05,133.04,20.34]
[1718942744630,0.1914514,133.05,133.04,0.34]
[1718942744833,0.1914514,133.05,133.03,20.0]
[1718942745139,0.1914514,133.05,133.01,2.19473559]
[1718942745825,0.1914514,133.05,133.01,8.20923559]
[1718942746026,0.1914514,133.05,133.02,20.0]
[1718942746239,0.1914514,133.05,133.01,2.19473559]
[1718942746525,0.1914514,133.05,133.0,65.42]
[1718942747252,0.1914514,133.05,133.0,71.435]
[1718942747425,0.1914514,133.05,133.0,96.36990061]
[1718942747630,0.1914514,133.05,133.01,6.5244]
[1718942747834,0.1914514,133.05,133.02,20.0]
[1718942748144,0.1914514,133.05,133.03,0.51]
[1718942749143,0.1914514,133.05,133.03,20.51]
[1718942749452,0.1914514,133.05,133.04,6.4696]
[1718942749632,0.1914514,133.05,133.04,26.9796]
[1718942755145,0.1914514,133.05,133.04,95.1396]
[1718942756241,1.4368569,133.08,133.04,95.1396]
[1718942756441,1.4368569,133.08,133.05,88.67]
[1718942756850,1.4368569,133.08,133.05,94.6826]
[1718942757236,1.4368569,133.08,133.06,74.1721]
[1718942757430,1.4368569,133.08,133.07,20.51]
[1718942757628,1.4368569,133.08,133.07,26.5218]
[1718942758749,1.4368569,133.08,133.07,20.51]
[1718942759227,1.4368569,133.08,133.07,94.6818]
[1718942760056,1.4368569,133.08,133.07,88.67]
[1718942760234,1.4368569,133.08,133.07,94.6818]
[1718942760647,1.4368569,133.08,133.07,20.51]
[1718942761333,6.5761,133.18,133.11,6.0097]
[1718942761539,6.5761,133.18,133.12,40.0796]
[1718942761938,6.5761,133.18,133.13,20.0]
[1718942762150,6.5761,133.18,133.14,0.51]
[1718942762334,6.5761,133.18,133.14,0.17]
[1718942762553,6.5761,133.18,133.13,20.0]
[1718942762739,6.5761,133.18,133.14,0.51]
[1718942763336,6.5761,133.18,133.14,0.34]
[1718942764152,22.2906767,133.21,133.15,0.17]
[1718942765148,22.2906767,133.21,133.13,20.0]
[1718942765352,6.0915,133.2,133.07,53.56]
[1718942765541,6.0915,133.2,133.07,33.56]
[1718942766131,6.0915,133.2,133.07,101.72]
[1718942766759,6.0915,133.2,133.08,0.51]
[1718942766938,0.17,133.19,133.08,20.0]
[1718942767138,6.5892,133.2,133.07,33.56]
[1718942767548,6.0075,133.17,133.12,6.0095]
[1718942767757,6.008,133.16,133.11,33.56]
[1718942767959,6.008,133.16,133.11,39.57]
[1718942768337,6.0083,133.15,133.12,20.0]
[1718942768638,6.5892,133.2,133.13,0.34]
[1718942768639,6.0087,133.14,133.13,0.34]
[1718942768852,6.0084,133.15,133.13,0.34]
[1718942769040,6.0091,133.13,133.12,20.0]
[1718942769234,6.5892,133.2,133.08,20.0]
[1718942769534,6.0087,133.14,133.08,20.0]
[1718942769835,6.008,133.16,133.09,68.16]
[1718942770040,6.5892,133.2,133.1,88.16]
[1718942770261,6.0083,133.15,133.1,68.16]
[1718942770445,6.0084,133.15,133.11,20.17]
[1718942770647,6.0087,133.14,133.12,0.34]
[1718942770864,6.5892,133.2,133.08,20.0]
[1718942771060,16.1991767,133.21,133.06,20.0]
[1718942771061,6.1727,133.18,133.06,20.0]
[1718942771240,0.34,133.19,133.06,20.0]
[1718942771241,15.383,133.17,133.06,20.0]
[1718942771563,6.0118,133.07,133.04,6.4696]
[1718942771760,6.1727,133.09,133.05,20.0]
[1718942772344,6.1727,133.09,133.04,6.4696]
[1718942772844,6.1727,133.12,133.04,51.8896]
[1718942773045,6.0101,133.11,133.05,6.0124]
[1718942773269,6.1727,133.12,133.04,51.8896]
[1718942773270,6.0108,133.1,133.04,57.9027]
[1718942773470,6.0122,133.07,133.04,6.4696]
[1718942773643,6.0124,133.06,133.04,6.4696]
[1718942773845,6.0127,133.05,133.04,6.4696]
[1718942774243,6.0127,133.05,133.0,35.75490061]
[1718942774244,6.0142,133.02,133.0,2.19490061]
[1718942774555,6.0141,133.03,133.0,15.383]
[1718942775073,6.0145,133.01,133.0,15.383]
[1718942775273,6.1727,133.05,132.96,51.4368]
[1718942775480,6.1727,133.05,132.97,15.383]
[1718942775640,6.0138,133.03,132.98,68.16]
[1718942775844,6.6023,133.08,132.98,81.17523072]
[1718942776064,6.0135,133.04,132.98,41.77073072]
[1718942776378,6.0133,133.04,132.99,6.1852]
[1718942776579,6.0133,133.04,133.0,0.34]
[1718942776759,6.0133,133.04,133.01,0.17]
[1718942777152,6.0136,133.03,133.01,0.17]
[1718942777768,6.0133,133.04,133.01,0.17]
[1718942777981,6.6023,133.08,133.01,0.17]
[1718942778269,15.383,133.11,133.02,33.56]
[1718942778456,6.0113,133.09,133.03,26.98446066]
[1718942778653,6.011,133.09,133.04,51.433]
[1718942778852,6.6462,133.12,133.05,20.17]
[1718942778853,6.0108,133.1,133.05,20.17]
[1718942779176,6.0108,133.1,133.06,0.34]
[1718942779347,6.6462,133.12,133.06,0.34]
[1718942779544,6.0117,133.08,133.06,0.34]
[1718942779848,6.0118,133.07,133.06,0.34]
[1718942780065,6.6462,133.12,133.03,20.0]
[1718942780446,6.6462,133.12,133.02,0.17]
[1718942780652,6.6462,133.12,133.01,68.33]
[1718942780845,6.0112,133.09,133.04,6.0132]
[1718942781059,6.0114,133.08,133.05,20.17]
[1718942781260,6.0114,133.08,133.05,0.17]
[1718942781455,6.6462,133.12,133.02,53.56]
[1718942781653,6.0128,133.05,133.03,0.17]
[1718942781861,6.0126,133.06,133.03,0.51]
[1718942782455,6.6462,133.12,133.02,53.56]
[1718942782648,6.6462,133.12,132.99,51.629]
[1718942782971,6.0134,133.04,132.99,57.6442]
[1718942783273,6.6462,133.12,132.98,35.75523072]
[1718942783475,0.34,133.11,132.98,35.75523072]
[1718942783858,6.014,133.03,132.98,41.77083072]